fUST/lending_fUST_20251225
["ID","MTS","AMOUNT","RATE_DAILY","PERIOD"]
[399703247,1766631031675,-500.0,0.00011956,2]
[399703248,1766631031685,-727.10506299,0.00012,2]
[399703249,1766631031695,-250.0,0.00012058,2]
[399703250,1766631031704,-1041.66666667,0.00012088,2]
[399703251,1766631031714,-1200.0,0.00012151,2]
[399703252,1766631031724,-300.0,0.00012193,2]
[399703253,1766631031734,-300.0,0.00012193,2]
[399703254,1766631031744,-300.0,0.00012193,2]
[399703255,1766631031754,-53860.92912061,0.00012194,2]
[399703256,1766631031763,-172.37604847,0.00012196,2]
[399703257,1766631031773,-199.81483321,0.00012262,2]
[399703258,1766631031782,-502.16042807,0.00012262,2]
[399703259,1766631031792,-370.14274353,0.00012262,2]
[399703260,1766631031801,-293.87170461,0.00012263,2]
[399703261,1766631031811,-173.88012771,0.00012296,2]
[399703262,1766631031824,-34.56096907,0.000123,2]
[399703263,1766631031837,-116.43903093,0.000123,2]
[399703264,1766631031846,-151.0,0.000123,2]
[399703265,1766631031856,-151.0,0.000123,2]
[399703266,1766631031866,-418.889,0.00012766,2]
[399703267,1766631031876,-119.29681835,0.000129,2]
[399703268,1766631031888,-597.21929559,0.000129,2]
[399703289,1766631037778,-174.78288185,0.00012899,2]
[399703291,1766631037788,-500.0,0.00012899,2]
[399703293,1766631037797,-470.61159785,0.00012899,2]
[399703295,1766631037807,-500.0,0.00012899,2]
[399703297,1766631037817,-500.0,0.00012899,2]
[399703299,1766631037827,-194.63966272,0.00012899,2]
[399703303,1766631037858,-305.36033728,0.00012899,2]
[399703305,1766631037869,-584.41966272,0.000129,2]
[399703307,1766631037880,-2044.10096532,0.000129,2]
[399703309,1766631037890,-349.76623339,0.00012935,2]
[399703311,1766631037900,-187.20759117,0.00012935,2]
[399703313,1766631037910,-500.0,0.00013273,2]
[399703315,1766631037919,-500.0,0.00013273,2]
[399703317,1766631037929,-500.0,0.00013273,2]
[399703319,1766631037938,-500.0,0.00013273,2]
[399703321,1766631037948,-500.0,0.00013273,2]
[399703323,1766631037957,-500.0,0.00013273,2]
[399703325,1766631037967,-500.0,0.00013273,2]
[399703327,1766631037976,-500.0,0.00013273,2]
[399703328,1766631037986,-500.0,0.00013273,2]
[399703330,1766631037996,-500.0,0.00013273,2]
[399703332,1766631038006,-500.0,0.00013273,2]
[399703334,1766631038016,-573.01139895,0.00013328,2]
[399703336,1766631038025,-2056.83968465,0.00013402,2]
[399703338,1766631038036,-408.96,0.00013598,2]
[399703340,1766631038047,-11277.38084414,0.000136,2]
[399703342,1766631038057,-2000.0,0.000136,2]
[399703344,1766631038066,-2000.0,0.000136,2]
[399703346,1766631038076,-2000.0,0.000136,2]
[399703348,1766631038085,-300.0,0.00013673,2]
[399703350,1766631038095,-10000.0,0.00013696,2]
[399703352,1766631038104,-500.0,0.00013698,2]
[399703354,1766631038115,-211.08096109,0.00013698,2]
[399703356,1766631038124,-526.56780985,0.00013698,2]
[399703358,1766631038135,-500.0,0.00013698,2]
[399703360,1766631038144,-500.0,0.00013698,2]
[399703362,1766631038154,-500.0,0.00013698,2]
[399703363,1766631038165,-500.0,0.00013698,2]
[399703365,1766631038175,-500.0,0.00013698,2]
[399703367,1766631038184,-500.0,0.00013698,2]
[399703369,1766631038195,-500.0,0.00013698,2]
[399703371,1766631038204,-500.0,0.00013698,2]
[399703373,1766631038216,-500.0,0.00013698,2]
[399703375,1766631038226,-514.53573525,0.00013698,2]
[399703377,1766631038237,-1000.0,0.00013698,2]
[399703379,1766631038247,-1000.0,0.00013698,2]
[399703381,1766631038257,-1000.0,0.00013698,2]
[399703383,1766631038268,-1000.0,0.00013698,2]
[399703385,1766631038279,-1000.0,0.00013698,2]
[399703387,1766631038290,-1000.0,0.00013698,2]
[399703389,1766631038300,-1000.0,0.00013698,2]
[399703391,1766631038310,-1000.0,0.00013698,2]
[399703393,1766631038320,-1000.0,0.00013698,2]
[399703395,1766631038329,-1000.0,0.00013698,2]
[399703397,1766631038340,-1000.0,0.00013698,2]
[399703399,1766631038349,-1000.0,0.00013698,2]
[399703401,1766631038359,-758.84177353,0.00013698,2]
[399703403,1766631038369,-1000.0,0.00013699,2]
[399703404,1766631038379,-1500.0,0.00013699,2]
[399703405,1766631038390,-480.078751,0.00013699,2]
[399703407,1766631038400,-77198.1963373,0.00013699,2]
[399703409,1766631038412,-500.0,0.00013699,2]
[399703411,1766631038421,-500.0,0.00013699,2]
[399703413,1766631038432,-500.0,0.00013699,2]
[399703415,1766631038443,-500.0,0.00013699,2]
[399703417,1766631038455,-500.0,0.00013699,2]
[399703419,1766631038467,-500.0,0.00013699,2]
[399703421,1766631038476,-500.0,0.00013699,2]
[399703423,1766631038486,-500.0,0.00013699,2]
[399703425,1766631038495,-500.0,0.00013699,2]
[399703427,1766631038505,-500.0,0.00013699,2]
[399703429,1766631038514,-311.22512286,0.00013699,2]
[399703431,1766631038524,-500.62242679,0.00013699,2]
[399703433,1766631038533,-500.0,0.00013699,2]
[399703434,1766631038544,-500.0,0.00013699,2]
[399703436,1766631038553,-500.0,0.00013699,2]
[399703438,1766631038563,-500.0,0.00013699,2]
[399703440,1766631038574,-500.0,0.00013699,2]
[399703442,1766631038584,-500.0,0.00013699,2]
[399703444,1766631038594,-500.0,0.00013699,2]
[399703446,1766631038604,-500.0,0.00013699,2]
[399703448,1766631038614,-500.0,0.00013699,2]
[399703450,1766631038623,-486.58251997,0.00013699,2]
[399703577,1766631039939,-13.41748003,0.00013699,2]
[399703579,1766631039949,-500.0,0.00013699,2]
[399703581,1766631039959,-500.0,0.00013699,2]
[399703583,1766631039968,-500.0,0.00013699,2]
[399703585,1766631039977,-153.10752143,0.00013699,2]
[399704117,1766631045817,-11676.55691342,0.00013273,2]
[399704119,1766631045830,-950.13,0.00013273,2]
[399713681,1766631257708,-150.0,6.108e-05,2]
[399713682,1766631257735,-150.0,6.386e-05,2]
[399713683,1766631257759,-150.0,6.664e-05,2]
[399713684,1766631257782,-150.0,7.219e-05,2]
[399713685,1766631257804,-150.0,7.774e-05,2]
[399713686,1766631257827,-151.73414021,8.263e-05,2]
[399713687,1766631257849,-150.0,8.33e-05,2]
[399713688,1766631257872,-177.0,8.386e-05,2]
[399713689,1766631257896,-150.0,8.885e-05,2]
[399713690,1766631257919,-157.95,0.0001,2]
[399713691,1766631257941,-157.95,0.000102,2]
[399713692,1766631257964,-204.0,0.00010386,2]
[399713693,1766631257985,-157.95,0.000104,2]
[399713694,1766631341370,261.44897699,8.263e-05,2]
[399713695,1766631341969,261.44897699,0.00010137,2]
[399713696,1766631342643,261.44897699,0.0001201,2]
[399713912,1766632231821,-215.54396488,8.263e-05,2]
[399713913,1766632231831,-150.0,8.731e-05,2]
[399713914,1766632231841,-215.54396488,0.00010135,2]
[399713915,1766632231851,-177.0,0.00010731,2]
[399713916,1766632231860,-421.71142567,0.00012,2]
[399713917,1766632231875,-1570.54846611,0.00012,2]
[399713918,1766632231884,-215.54396488,0.00012008,2]
[399713919,1766632231901,-1518.46033519,0.0001201,2]
[399713962,1766632237976,-2084.42943746,0.0001201,2]
[399713964,1766632237989,-2197.056,0.0001201,2]
[399713966,1766632238002,-1072.42239394,0.0001201,2]
[399714181,1766632240407,-6846.59033594,0.0001201,2]
[399714183,1766632240418,-2326.75000085,0.0001201,2]
[399714416,1766632243103,-771.99000221,0.0001201,2]
[399714689,1766632246011,-295.13886484,0.0001201,2]
[399714696,1766632246070,-76258.05346137,0.0001201,2]
[399714698,1766632246081,-25270.98738152,0.00012091,2]
[399714700,1766632246091,-1200.0,0.00012091,2]
[399714702,1766632246102,-294.47355395,0.00012091,2]
[399714704,1766632246112,-500.0,0.00012091,2]
[399714706,1766632246122,-500.0,0.00012091,2]
[399714708,1766632246132,-500.0,0.00012091,2]
[399714710,1766632246143,-229.42811849,0.00012091,2]
[399714712,1766632246154,-57999.80621917,0.00012092,2]
[399714715,1766632246176,-1331.17307,0.00012092,2]
[399716486,1766632376941,-203.5906034,0.00012008,2]
[399716487,1766632377325,-500.0,0.00012091,2]
[399716488,1766632377346,-500.0,0.00012091,2]
[399716489,1766632377368,-500.0,0.00012091,2]
[399716490,1766632377396,-500.0,0.00012091,2]
[399716491,1766632377418,-500.0,0.00012091,2]
[399716492,1766632377440,-500.0,0.00012091,2]
[399716493,1766632377463,-460.41988231,0.00012091,2]
[399716494,1766632377484,-500.0,0.00012091,2]
[399716495,1766632377507,-500.0,0.00012091,2]
[399716497,1766632582447,150.0,4.2e-07,2]
[399716498,1766632583897,150.0,4.2e-07,2]
[399716499,1766632584902,150.0,4.2e-07,2]
[399716500,1766632585986,150.0,4.2e-07,2]
[399716501,1766632587039,150.0,4.2e-07,2]
[399716526,1766632662153,621.52,0.0001,3]
[399716667,1766633432077,-215.43016535,8.263e-05,2]
[399716668,1766633432088,-150.0,9.132e-05,2]
[399716669,1766633432103,-513.15983465,0.0001,3]
[399716709,1766633438342,-9482.04729408,0.0001,3]
[399716712,1766633438371,-177.0,0.00011132,2]
[399716715,1766633438381,-159.84917527,0.000119,2]
[399716717,1766633438391,-206.68921526,0.00011925,2]
[399716718,1766633438401,-206.13148777,0.00011991,2]
[399716720,1766633438411,-495.60220915,0.00011991,2]
[399716722,1766633438420,-12649.16661977,0.00011992,2]
[399716725,1766633438433,-14047.48483495,0.00011992,2]
[399716727,1766633438444,-90486.37126366,0.00011992,2]
[399716887,1766633440296,-5335.99341787,0.00011992,2]
[399716890,1766633440307,-430.55025904,0.00011992,2]
[399717074,1766633443261,-2037.62498136,0.00011992,2]
[399717083,1766633446187,-966.88,0.00011992,2]
[399717102,1766633578558,-363733.0,0.00011992,2]
[399717306,1766634221019,5000.0,5e-05,2]
[399717335,1766634414530,312.71328874,5e-05,2]
[399717355,1766634564153,-150.0,5.125e-05,2]
[399717356,1766634564178,-150.0,5.356e-05,2]
[399717357,1766634564201,-67.93824561,7.125e-05,2]
[399717383,1766634632227,-521.0,7.125e-05,2]
[399717384,1766634632238,-109.06175439,7.125e-05,2]
[399717385,1766634632249,-204.0,9.125e-05,2]
[399717386,1766634632259,-216.82,0.0001,2]
[399717387,1766634632269,-231.0,0.00011125,2]
[399717388,1766634632279,-215.86102568,0.00011601,2]
[399717389,1766634632290,-192.72325203,0.00011609,2]
[399717390,1766634632299,-300.0,0.00011889,2]
[399717391,1766634632309,-500.0,0.0001189,2]
[399717392,1766634632319,-292.43534446,0.0001189,2]
[399717393,1766634632331,-138.74165254,0.0001189,2]
[399717394,1766634632340,-440.70680712,0.0001189,2]
[399717444,1766634638301,-59.29319288,0.0001189,2]
[399717446,1766634638312,-485.88480712,0.0001189,2]
[399717451,1766634638354,-14.11519288,0.0001189,2]
[399717453,1766634638364,-500.0,0.0001189,2]
[399717455,1766634638374,-500.0,0.0001189,2]
[399717457,1766634638384,-500.00000001,0.0001189,2]
[399717460,1766634638399,-500.0,0.0001189,2]
[399717462,1766634638418,-327.25022739,0.0001189,2]
[399717463,1766634638428,-500.0,0.0001189,2]
[399717465,1766634638439,-500.0,0.0001189,2]
[399717468,1766634638450,-500.0,0.0001189,2]
[399717470,1766634638461,-211.82690447,0.0001189,2]
[399717471,1766634638470,-500.0,0.0001189,2]
[399717473,1766634638479,-500.0,0.0001189,2]
[399717475,1766634638489,-500.0,0.0001189,2]
[399717478,1766634638499,-500.0,0.0001189,2]
[399717479,1766634638510,-500.0,0.0001189,2]
[399717482,1766634638519,-500.0,0.0001189,2]
[399717483,1766634638529,-500.0,0.0001189,2]
[399717485,1766634638538,-500.0,0.0001189,2]
[399717488,1766634638548,-500.0,0.0001189,2]
[399717489,1766634638557,-201.76355627,0.0001189,2]
[399717492,1766634638567,-500.0,0.0001189,2]
[399717494,1766634638577,-500.0,0.0001189,2]
[399717496,1766634638586,-287.0201906,0.0001189,2]
[399717987,1766634643479,-30.1401279,0.0001189,2]
[399717992,1766634643522,-182.8396815,0.0001189,2]
[399717994,1766634643532,-252.1753185,0.0001189,2]
[399721191,1766634860282,-150.0,5.363e-05,2]
[399721192,1766634860304,-48.85,5.849e-05,2]
[399721193,1766634860334,-101.15,5.849e-05,2]
[399721194,1766634860355,-150.0,6.336e-05,2]
[399721195,1766634860376,-4.52,6.824e-05,2]
[399721196,1766634860411,-145.48,6.824e-05,2]
[399721197,1766634860433,-81.78,7.311e-05,2]
[399721198,1766634860686,-68.22,7.311e-05,2]
[399721199,1766634860706,-170.44,7.767e-05,2]
[399721200,1766634860727,-198.85,8.252e-05,2]
[399721201,1766634860748,-150.0,8.626e-05,2]
[399721202,1766634860769,-227.26,8.738e-05,2]
[399721203,1766634860792,-226.89666667,9.223e-05,2]
[399721204,1766634860822,-28.77333333,9.223e-05,2]
[399721205,1766634860843,-284.07,9.709e-05,2]
[399721206,1766634860865,-177.0,0.00010626,2]
[399721207,1766634860886,-282.18880461,0.00011034,2]
[399721208,1766634860908,-2174.66456205,0.00011679,2]
[399721209,1766634860928,-507.93984829,0.00011706,2]
[399721210,1766634860950,-1041.66666667,0.00011802,2]
[399721211,1766634860970,-54.38690343,0.0001189,2]
[399721212,1766634860999,-245.61309657,0.0001189,2]
[399721241,1766634869195,54.38690343,5.361e-05,2]
[399721242,1766634869218,95.61309657,5.361e-05,2]
[399721243,1766634869581,150.0,5.848e-05,2]
[399721427,1766635615143,-271.78230887,0.00011158,2]
[399721570,1766635838436,-150.0,0.00011438,2]
[399721571,1766635838447,-2477.25053208,0.00011626,2]
[399721572,1766635838457,-186.61783622,0.00011786,2]
[399721573,1766635838467,-300.0,0.00011789,2]
[399721574,1766635838477,-500.0,0.0001179,2]
[399721575,1766635838487,-500.0,0.0001179,2]
[399721576,1766635838496,-500.0,0.0001179,2]
[399721577,1766635838506,-500.0,0.0001179,2]
[399721578,1766635838516,-500.0,0.0001179,2]
[399721579,1766635838526,-500.0,0.0001179,2]
[399721580,1766635838537,-500.0,0.0001179,2]
[399721581,1766635838546,-500.0,0.0001179,2]
[399721582,1766635838556,-500.0,0.0001179,2]
[399721583,1766635838921,-435.06929524,0.0001179,2]
[399721584,1766635838933,-500.0,0.0001179,2]
[399721585,1766635838944,-492.46507664,0.0001179,2]
[399721586,1766635838954,-500.0,0.0001179,2]
[399721587,1766635838964,-594.63780444,0.0001179,2]
[399721588,1766635838974,-500.0,0.0001179,2]
[399721589,1766635838984,-500.0,0.0001179,2]
[399721590,1766635838994,-425.25002526,0.0001179,2]
[399721591,1766635839004,-549.36300189,0.0001179,2]
[399721592,1766635839014,-1000000.0,0.00011791,2]
[399721593,1766635839030,-1041.66666667,0.00011886,2]
[399721594,1766635839041,-903.00417475,0.0001201,2]
[399721595,1766635839051,-372.92670396,0.0001201,2]
[399721596,1766635839061,-600.0,0.00012026,2]
[399721597,1766635839071,-500.0,0.00012232,2]
[399721598,1766635839081,-1410.94402304,0.00012279,2]
[399721599,1766635839091,-298.427,0.00012353,2]
[399721600,1766635839100,-151.065,0.00012353,2]
[399721601,1766635839111,-151.703,0.00012353,2]
[399721602,1766635839121,-150.0,0.00012353,2]
[399721603,1766635839131,-184.357,0.00012353,2]
[399721604,1766635839141,-1368.677,0.00012353,2]
[399721605,1766635839151,-635.377,0.00012353,2]
[399721606,1766635839161,-2164.377,0.00012353,2]
[399721607,1766635839171,-416.0,0.00012353,2]
[399721608,1766635839181,-447.20656012,0.00012404,2]
[399721609,1766635839191,-623.89181549,0.00012442,2]
[399721610,1766635839200,-3277.47856383,0.00012654,2]
[399721611,1766635839210,-500.0,0.00012672,2]
[399721612,1766635839219,-385.8991977,0.00012722,2]
[399721613,1766635839235,-500.0,0.00012805,2]
[399721614,1766635839247,-150.0,0.00012805,2]
[399721615,1766635839258,-500.0,0.00012805,2]
[399721616,1766635839268,-150.0,0.00012805,2]
[399721617,1766635839280,-500.0,0.00012805,2]
[399721618,1766635839290,-500.0,0.00012805,2]
[399721619,1766635839301,-500.0,0.00012809,2]
[399721620,1766635839312,-160.0,0.0001289,3]
[399721621,1766635839323,-476.73,0.000129,2]
[399721622,1766635839334,-2029.72763379,0.00012911,2]
[399721623,1766635839345,-500.0,0.00012942,2]
[399721624,1766635839355,-150.0,0.00012942,2]
[399721625,1766635839365,-500.0,0.00012942,2]
[399721626,1766635839375,-500.0,0.00012942,2]
[399721627,1766635839386,-500.0,0.00012942,2]
[399721628,1766635839396,-412.0,0.00012944,2]
[399721629,1766635839406,-192.85802376,0.00012946,2]
[399721630,1766635839416,-524.0,0.00012977,2]
[399721631,1766635839427,-15801.0558847,0.00012998,2]
[399721632,1766635839437,-4012.32138417,0.00013,2]
[399721633,1766635839448,-7127.65808993,0.00013,2]
[399721634,1766635839458,-524.0,0.00013003,2]
[399721635,1766635839468,-524.0,0.0001301,2]
[399721636,1766635839479,-524.0,0.00013038,2]
[399721637,1766635839489,-524.0,0.00013041,2]
[399721638,1766635839499,-524.0,0.00013053,2]
[399721639,1766635839509,-524.0,0.00013056,2]
[399721640,1766635839519,-524.0,0.00013068,2]
[399721641,1766635839529,-524.0,0.00013069,2]
[399721642,1766635839539,-500.0,0.00013079,2]
[399721643,1766635839548,-255.16092824,0.00013079,2]
[399721644,1766635839559,-500.0,0.00013079,2]
[399721645,1766635839571,-500.0,0.00013079,2]
[399721646,1766635839581,-500.0,0.00013079,2]
[399721647,1766635839591,-524.0,0.00013079,2]
[399721648,1766635839602,-524.0,0.00013082,2]
[399721649,1766635839612,-524.0,0.00013098,2]
[399721650,1766635839622,-804.97180822,0.00013101,2]
[399721651,1766635839632,-524.0,0.0001312,2]
[399721652,1766635839642,-524.0,0.00013131,2]
[399721653,1766635839652,-427.42228178,0.00013216,2]
[399721654,1766635839662,-500.0,0.00013216,2]
[399721655,1766635839672,-321.62000094,0.00013216,2]
[399721656,1766635839682,-500.0,0.00013216,2]
[399721657,1766635839692,-720.0,0.00013228,2]
[399721658,1766635839702,-524.0,0.00013237,2]
[399721659,1766635839712,-524.0,0.00013249,2]
[399721660,1766635839723,-524.0,0.00013254,2]
[399721661,1766635839737,-524.0,0.00013261,2]
[399721662,1766635839747,-500.0,0.00013273,2]
[399721663,1766635839757,-500.0,0.00013273,2]
[399721664,1766635839768,-500.0,0.00013273,2]
[399721665,1766635839778,-500.0,0.00013273,2]
[399721666,1766635839788,-500.0,0.00013273,2]
[399721667,1766635839798,-500.0,0.00013273,2]
[399721668,1766635839808,-500.0,0.00013273,2]
[399721669,1766635839818,-500.0,0.00013273,2]
[399721670,1766635839828,-500.0,0.00013273,2]
[399721671,1766635839838,-500.0,0.00013273,2]
[399721672,1766635839849,-500.0,0.00013273,2]
[399721673,1766635839859,-524.0,0.00013292,2]
[399721674,1766635839869,-159.0,0.000133,2]
[399721675,1766635839879,-524.0,0.00013326,2]
[399721676,1766635839888,-524.0,0.00013334,2]
[399721677,1766635839898,-524.0,0.00013336,2]
[399721678,1766635839908,-500.0,0.00013353,2]
[399721679,1766635839918,-325.72273064,0.00013353,2]
[399721680,1766635839928,-524.0,0.00013377,2]
[399721681,1766635839938,-518.13086846,0.00013425,2]
[399721682,1766635839948,-524.0,0.00013434,2]
[399721683,1766635839957,-177.0,0.00013438,2]
[399721684,1766635839967,-644.53860169,0.0001349,2]
[399721685,1766635839977,-524.0,0.00013492,2]
[399721686,1766635839987,-10000.0,0.0001354,2]
[399721687,1766635839997,-193.0235819,0.00013544,2]
[399721688,1766635840007,-193.0235819,0.00013544,2]
[399721689,1766635840017,-193.0235819,0.00013544,2]
[399721690,1766635840027,-386.0471638,0.00013544,2]
[399721691,1766635840037,-193.0235819,0.00013544,2]
[399721692,1766635840047,-390.5999659,0.00013544,2]
[399721693,1766635840056,-193.0235819,0.00013544,2]
[399721694,1766635840069,-193.0235819,0.00013544,2]
[399721695,1766635840079,-193.0235819,0.00013544,2]
[399721696,1766635840089,-193.0235819,0.00013544,2]
[399721698,1766635840098,-197.3098569,0.00013544,2]
[399721699,1766635840108,-193.0235819,0.00013544,2]
[399721700,1766635840118,-193.0235819,0.00013544,2]
[399721701,1766635840128,-193.0235819,0.00013544,2]
[399721702,1766635840138,-193.0235819,0.00013544,2]
[399721703,1766635840148,-157.2055175,0.00013544,2]
[399721704,1766635840158,-300.0,0.00013673,2]
[399721705,1766635840168,-240.039376,0.00013699,2]
[399721706,1766635840179,-12455.6254385,0.00013699,2]
[399721707,1766635840188,-1500.0,0.00013699,2]
[399721708,1766635840198,-1000.0,0.00013699,2]
[399721709,1766635840208,-210.943634,0.00013699,2]
[399721710,1766635840218,-151.0,0.00013699,2]
[399721711,1766635840229,-151.0,0.00013699,2]
[399721712,1766635840239,-592.423366,0.00013699,2]
[399721713,1766635840249,-163.699638,0.00013699,2]
[399721714,1766635840259,-592.423366,0.00013699,2]
[399721715,1766635840269,-592.423366,0.00013699,2]
[399721716,1766635840280,-592.423366,0.00013699,2]
[399721717,1766635840290,-717.04541,0.00013699,2]
[399721718,1766635840300,-717.04541,0.00013699,2]
[399721719,1766635840310,-717.04541,0.00013699,2]
[399721720,1766635840321,-251.823042,0.00013699,2]
[399721721,1766635840331,-717.04541,0.00013699,2]
[399721722,1766635840341,-251.823042,0.00013699,2]
[399721723,1766635840352,-251.823042,0.00013699,2]
[399721724,1766635840362,-251.823042,0.00013699,2]
[399721725,1766635840372,-195.765928,0.00013699,2]
[399721726,1766635840382,-151.0,0.00013699,2]
[399721727,1766635840391,-151.0,0.00013699,2]
[399721728,1766635840401,-2484.614992,0.00013699,2]
[399721729,1766635840411,-2484.614992,0.00013699,2]
[399721730,1766635840421,-2484.614992,0.00013699,2]
[399721731,1766635840430,-2484.614992,0.00013699,2]
[399721732,1766635840440,-295.420555,0.00013699,2]
[399721733,1766635840452,-295.420555,0.00013699,2]
[399721734,1766635840462,-295.420555,0.00013699,2]
[399721735,1766635840471,-295.420555,0.00013699,2]
[399721736,1766635840482,-151.0,0.00013699,2]
[399721737,1766635840492,-207.610076,0.00013699,2]
[399721738,1766635840502,-207.610076,0.00013699,2]
[399721739,1766635840512,-207.610076,0.00013699,2]
[399721740,1766635840522,-207.610076,0.00013699,2]
[399721741,1766635840533,-151.0,0.00013699,2]
[399721742,1766635840544,-234.643774,0.00013699,2]
[399721743,1766635840555,-151.0,0.00013699,2]
[399721744,1766635840565,-180.865134,0.00013699,2]
[399721745,1766635840578,-151.0,0.00013699,2]
[399721746,1766635840588,-151.0,0.00013699,2]
[399721747,1766635840597,-151.0,0.00013699,2]
[399721748,1766635840608,-151.0,0.00013699,2]
[399721749,1766635840620,-151.0,0.00013699,2]
[399721750,1766635840629,-151.0,0.00013699,2]
[399721751,1766635840640,-151.0,0.00013699,2]
[399721752,1766635840650,-151.0,0.00013699,2]
[399721753,1766635840660,-151.0,0.00013699,2]
[399721754,1766635840671,-436.704715,0.00013699,2]
[399721755,1766635840680,-436.704715,0.00013699,2]
[399721756,1766635840690,-247.203738,0.00013699,2]
[399721757,1766635840700,-151.0,0.00013699,2]
[399721758,1766635840710,-436.704715,0.00013699,2]
[399721759,1766635840720,-436.704715,0.00013699,2]
[399721760,1766635840731,-153.307963,0.00013699,2]
[399721761,1766635840741,-151.0,0.00013699,2]
[399721762,1766635840752,-151.0,0.00013699,2]
[399721763,1766635840762,-151.0,0.00013699,2]
[399721764,1766635840772,-467.099467,0.00013699,2]
[399721765,1766635840782,-467.099467,0.00013699,2]
[399721766,1766635840792,-467.099467,0.00013699,2]
[399721767,1766635840802,-467.099467,0.00013699,2]
[399721768,1766635840812,-151.0,0.00013699,2]
[399721769,1766635840822,-151.0,0.00013699,2]
[399721770,1766635840832,-1077.140455,0.00013699,2]
[399721771,1766635840842,-1077.140455,0.00013699,2]
[399721772,1766635840851,-1077.140455,0.00013699,2]
[399721773,1766635840861,-641.4247962,0.00013699,2]
[399721808,1766635841214,-435.7156588,0.00013699,2]
[399721809,1766635841224,-262.083738,0.00013699,2]
[399721811,1766635841234,-151.0,0.00013699,2]
[399721813,1766635841244,-262.083738,0.00013699,2]
[399721815,1766635841255,-262.083738,0.00013699,2]
[399721817,1766635841265,-262.083738,0.00013699,2]
[399721818,1766635841275,-151.557664,0.00013699,2]
[399721820,1766635841287,-151.557664,0.00013699,2]
[399721822,1766635841296,-151.557664,0.00013699,2]
[399721824,1766635841306,-151.557664,0.00013699,2]
[399721826,1766635841315,-152.563857,0.00013699,2]
[399721828,1766635841325,-159.239599,0.00013699,2]
[399721829,1766635841336,-151.0,0.00013699,2]
[399721831,1766635841346,-151.0,0.00013699,2]
[399721833,1766635841357,-151.0,0.00013699,2]
[399721835,1766635841367,-151.0,0.00013699,2]
[399721837,1766635841377,-151.0,0.00013699,2]
[399721839,1766635841387,-151.0,0.00013699,2]
[399721841,1766635841397,-174.897298,0.00013699,2]
[399721843,1766635841406,-174.897298,0.00013699,2]
[399721845,1766635841416,-174.897298,0.00013699,2]
[399721846,1766635841426,-174.207669,0.00013699,2]
[399721848,1766635841436,-174.897298,0.00013699,2]
[399721850,1766635841446,-151.0,0.00013699,2]
[399721852,1766635841456,-151.0,0.00013699,2]
[399721854,1766635841466,-151.0,0.00013699,2]
[399721856,1766635841476,-151.0,0.00013699,2]
[399721858,1766635841486,-151.0,0.00013699,2]
[399721859,1766635841495,-151.0,0.00013699,2]
[399721861,1766635841505,-151.0,0.00013699,2]
[399721863,1766635841515,-167.416293,0.00013699,2]
[399721865,1766635841524,-662.544472,0.00013699,2]
[399721866,1766635841533,-662.544472,0.00013699,2]
[399721868,1766635841543,-662.544472,0.00013699,2]
[399721870,1766635841553,-178.524665,0.00013699,2]
[399721872,1766635841564,-662.544472,0.00013699,2]
[399721873,1766635841575,-151.0,0.00013699,2]
[399721875,1766635841586,-151.0,0.00013699,2]
[399721877,1766635841596,-151.0,0.00013699,2]
[399721879,1766635841605,-1229.090703,0.00013699,2]